fUST/lending_fUST_20260127
["ID","MTS","AMOUNT","RATE_DAILY","PERIOD"]
[403719676,1769508640994,-150.0,0.00018652,2]
[403719677,1769508641003,-729.0,0.0001872,2]
[403719678,1769508641013,-729.0,0.0001872,2]
[403719679,1769508641023,-729.0,0.0001872,2]
[403719680,1769508641032,-729.0,0.0001872,2]
[403719681,1769508641042,-160.0,0.00018754,4]
[403719682,1769508641051,-500.0,0.00018789,2]
[403719683,1769508641062,-203.22995998,0.00018789,2]
[403719684,1769508641071,-151.0,0.000188,2]
[403719685,1769508641082,-1000.0,0.00018888,5]
[403719686,1769508641091,-151.0,0.000189,2]
[403719687,1769508641100,-303.10001603,0.000189,2]
[403719688,1769508641109,-303.10001603,0.000189,2]
[403719689,1769508641119,-500.0,0.00018926,2]
[403719690,1769508641128,-2202.28,0.00018949,2]
[403719691,1769508641138,-408.963,0.00018952,2]
[403719692,1769508641147,-397.18958588,0.00018998,2]
[403719693,1769508641157,-200.0,0.00018999,2]
[403719694,1769508641166,-200.65392429,0.00018999,2]
[403719695,1769508641178,-28634.83747961,0.00019,2]
[403719710,1769508642917,-1981.48588766,0.00014225,2]
[403719711,1769508643075,-3018.51411234,0.00014225,2]
[403719712,1769508643085,-2642.17243066,0.00019,2]
[403724039,1769508782639,500.0,0.00034885,120]
[403724040,1769508804535,500.0,0.00034885,120]
[403724041,1769508804759,529.14,0.00034885,120]
[403724042,1769508870804,-1182.32,0.00012329,2]
[403724043,1769508870834,-985.27,0.00012329,2]
[403724044,1769508870863,-1023.16,0.00012329,2]
[403724045,1769508870894,-311.40251706,0.00012447,2]
[403724046,1769508870922,-186.73775277,0.00012565,2]
[403724047,1769508871026,-2622.22946034,0.00012565,2]
[403724048,1769508880814,-852.63,0.00012329,2]
[403724049,1769508880847,-8294.75,0.00012565,2]
[403724052,1769509016639,-3043.13862744,0.00012205,2]
[403724053,1769509016666,-300.0,0.00012328,2]
[403724054,1769509016695,-710.53,0.00012329,2]
[403724055,1769509016723,-592.11,0.00012329,2]
[403724056,1769509016750,-215.03274512,0.00012329,2]
[403724057,1769509016833,-278.38725488,0.00012329,2]
[403724058,1769509026498,-304.16874062,0.00012205,2]
[403724059,1769509026526,-300.0,0.00012328,2]
[403724060,1769509026554,-411.18,0.00012329,2]
[403724061,1769509026581,-342.65,0.00012329,2]
[403724062,1769509026608,-285.55,0.00012329,2]
[403724063,1769509026635,-237.95,0.00012329,2]
[403724064,1769509026662,-590.45,0.00012329,2]
[403724065,1769509026689,-492.05,0.00012329,2]
[403724066,1769509026715,-410.04,0.00012329,2]
[403724067,1769509026741,-341.7,0.00012329,2]
[403724068,1769509026768,-341.7,0.00012329,2]
[403724069,1769509026795,-227.8,0.00012329,2]
[403724070,1769509026821,-189.83,0.00012329,2]
[403724071,1769509026848,-172.3448985,0.000125,2]
[403724072,1769509026874,-224.13749838,0.00012563,2]
[403724073,1769509027078,-256.907725,0.00012563,2]
[403724074,1769509034764,-158.19,0.00012329,2]
[403724075,1769509034792,-500.0,0.00012563,2]
[403724076,1769509034821,-500.0,0.00012563,2]
[403724077,1769509034851,-300.98090398,0.00012563,2]
[403724078,1769509034881,-500.0,0.00012563,2]
[403724079,1769509034909,-500.0,0.00012563,2]
[403724080,1769509034938,-500.0,0.00012563,2]
[403724081,1769509034966,-500.0,0.00012563,2]
[403724082,1769509034995,-500.0,0.00012563,2]
[403724083,1769509035022,-500.0,0.00012563,2]
[403724084,1769509035051,-500.0,0.00012563,2]
[403724085,1769509035182,-500.0,0.00012563,2]
[403724086,1769509035210,-500.0,0.00012563,2]
[403724087,1769509035238,-500.0,0.00012563,2]
[403724088,1769509035266,-500.0,0.00012563,2]
[403724089,1769509035294,-500.0,0.00012563,2]
[403724090,1769509035320,-500.0,0.00012563,2]
[403724091,1769509035348,-500.0,0.00012563,2]
[403724092,1769509035375,-500.0,0.00012563,2]
[403724093,1769509035402,-500.0,0.00012563,2]
[403724094,1769509035432,-500.0,0.00012563,2]
[403724095,1769509035670,-81.66819204,0.00012563,2]
[403724096,1769509035687,-0.01,0.00012563,2]
[403724097,1769509037952,-418.32180796,0.00012563,2]
[403724098,1769509037981,-500.0,0.00012563,2]
[403724099,1769509038012,-500.0,0.00012563,2]
[403724100,1769509038039,-500.0,0.00012563,2]
[403724101,1769509038072,-500.0,0.00012563,2]
[403724102,1769509038101,-500.0,0.00012563,2]
[403724103,1769509038267,-500.0,0.00012563,2]
[403724104,1769509038298,-500.0,0.00012563,2]
[403724105,1769509038329,-500.0,0.00012563,2]
[403724106,1769509038358,-500.0,0.00012563,2]
[403724107,1769509038537,-163.36638408,0.00012563,2]
[403724108,1769509042284,-1956.86137256,0.00012205,2]
[403724109,1769509042311,-790.99,0.00012329,2]
[403724110,1769509042339,-75.39476255,0.00012563,2]
[403724111,1769509042366,-500.0,0.00012563,2]
[403724112,1769509042393,-500.0,0.00012563,2]
[403724113,1769509042428,-500.0,0.00012563,2]
[403724114,1769509042456,-500.0,0.00012563,2]
[403724115,1769509042568,-353.51772978,0.00012563,2]
[403724116,1769509042598,-146.48227022,0.00012563,2]
[403724117,1769509042625,-500.0,0.00012563,2]
[403724118,1769509042652,-500.0,0.00012563,2]
[403724119,1769509042678,-387.95151791,0.00012563,2]
[403724120,1769509042706,-500.0,0.00012563,2]
[403724121,1769509042733,-500.0,0.00012563,2]
[403724122,1769509042760,-500.0,0.00012563,2]
[403724123,1769509042789,-500.0,0.00012563,2]
[403724124,1769509042816,-500.0,0.00012563,2]
[403724125,1769509042843,-500.0,0.00012563,2]
[403724126,1769509042870,-431.14242374,0.00012563,2]
[403724127,1769509043027,-68.85757626,0.00012563,2]
[403724129,1769509050366,-5000.0,0.00012438,2]
[403724130,1769509050402,-0.01,0.00012563,2]
[403724131,1769509056591,-499.99,0.00012563,2]
[403724132,1769509056618,-500.0,0.00012563,2]
[403724133,1769509056645,-500.0,0.00012563,2]
[403724134,1769509056672,-500.0,0.00012563,2]
[403724135,1769509056699,-500.0,0.00012563,2]
[403724136,1769509056725,-500.0,0.00012563,2]
[403724137,1769509056753,-500.0,0.00012563,2]
[403724138,1769509056780,-500.0,0.00012563,2]
[403724139,1769509056807,-500.0,0.00012563,2]
[403724140,1769509056835,-500.0,0.00012563,2]
[403724141,1769509057129,-0.03,0.00012563,2]
[403724143,1769509509526,-446.52692295,0.00011555,2]
[403724144,1769509513544,-401.21784296,0.00011555,2]
[403724145,1769509515591,-801.85566417,0.00011555,2]
[403724146,1769509518955,-181.33758206,0.00011555,2]
[403724147,1769509521044,-380.83362955,0.00011555,2]
[403724148,1769509524199,-178.58301554,0.00011555,2]
[403724150,1769509525620,-300.80359074,0.00011555,2]
[403724151,1769509527586,-205.77573793,0.00011555,2]
[403724152,1769509529740,-316.88706741,0.00011555,2]
[403724153,1769509532035,-300.0,0.00011555,2]
[403724154,1769509534796,-592.33500971,0.00011555,2]
[403724155,1769509537591,-300.0,0.00011555,2]
[403724156,1769509540352,-728.31085993,0.00011555,2]
[403724157,1769509541899,-157.52,0.00011555,2]
[403724158,1769509543369,-183.06853102,0.00011555,2]
[403724159,1769509546301,-296.12929703,0.00011555,2]
[403724160,1769509547834,-351.77805452,0.00011555,2]
[403724161,1769509550010,-184.43475781,0.00011555,2]
[403724162,1769509552432,-522.6486575,0.00011555,2]
[403724163,1769509556366,-232.04407171,0.00011555,2]
[403724164,1769509591452,-232.04407171,0.0001144,2]
[403724165,1769509591481,-300.0,0.00011554,2]
[403724166,1769509591638,-8935.92185658,0.00011555,2]
[403724167,1769509593179,1000.0,0.0003,120]
[403724168,1769509599505,-10000.01,0.00011555,2]
[403724169,1769509692409,1930.25858553,0.0001,2]
[403724170,1769509700784,289.57526058,0.0001,2]
[403724171,1769509710214,1000.0,0.0001,2]
[403724172,1769509716882,6780.17615389,0.0001,2]
[403724173,1769509716904,10000.01,0.0001,2]
[403724174,1769509716926,65.14657222,0.0001,2]
[403724176,1769509717280,533.68643807,0.0001,2]
[403724177,1769509739059,-5000.0,0.0001144,2]
[403724178,1769509749488,-1858.58899028,0.00011555,2]
[403724179,1769509749516,-300.0,0.00011784,2]
[403724180,1769509752133,-6700.64933422,0.00011785,2]
[403724181,1769509752155,-300.0,0.00011785,2]
[403724182,1769509752176,-300.0,0.00011785,2]
[403724183,1769509752196,-300.0,0.00011785,2]
[403724184,1769509752216,-300.0,0.00011785,2]
[403724185,1769509752236,-300.0,0.00011785,2]
[403724186,1769509752256,-300.0,0.00011785,2]
[403724187,1769509752276,-300.0,0.00011785,2]
[403724188,1769509752296,-300.0,0.00011785,2]
[403724189,1769509752316,-300.0,0.00011785,2]
[403724190,1769509752336,-300.0,0.00011785,2]
[403724191,1769509752355,-300.0,0.00011785,2]
[403724192,1769509752375,-300.0,0.00011785,2]
[403724193,1769509752396,-300.0,0.00011785,2]
[403724194,1769509752417,-300.0,0.00011785,2]
[403724195,1769509752437,-300.0,0.00011785,2]
[403724196,1769509752457,-427.78591575,0.0001202,2]
[403724197,1769509753077,-172.21408425,0.0001202,2]
[403724198,1769509753098,-500.0,0.00012188,2]
[403724199,1769509753118,-285.08939571,0.00012188,2]
[403724200,1769509763094,-5000.0,0.00012066,2]
[403724201,1769509763115,-214.91060429,0.00012188,2]
[403724202,1769509763137,-54.87567156,0.00012188,2]
[403724203,1769509764583,10000.01,0.00011663,2]
[403724204,1769509789448,266.88861491,0.00034987,120]
[403724256,1769509831978,-293.5498943,0.00010959,2]
[403724258,1769509831988,-5000.0,0.00011546,2]
[403724260,1769509831997,-582.0,0.00011546,2]
[403724262,1769509832007,-352.81673667,0.00011604,2]
[403724264,1769509832017,-300.0,0.00011662,2]
[403724266,1769509832027,-300.0,0.00011662,2]
[403724268,1769509832037,-300.0,0.00011662,2]
[403724270,1769509832046,-1200.0,0.00011662,2]
[403724272,1769509832056,-300.0,0.00011662,2]
[403724274,1769509832066,-5711.9464038,0.00011663,2]
[403724276,1769509832076,-300.0,0.00011776,2]
[403724278,1769509832085,-300.0,0.00011776,2]
[403724280,1769509832095,-211.00713001,0.00011776,2]
[403724341,1769509838233,-88.99286999,0.00011776,2]
[403724342,1769509838245,-300.0,0.00011776,2]
[403724343,1769509838255,-300.0,0.00011776,2]
[403724344,1769509838267,-300.0,0.00011776,2]
[403724345,1769509838278,-300.0,0.00011776,2]
[403724346,1769509838289,-300.0,0.00011776,2]
[403724347,1769509838300,-300.0,0.00011776,2]
[403724348,1769509838311,-300.0,0.00011776,2]
[403724349,1769509838322,-300.0,0.00011776,2]
[403724350,1769509838332,-26.80092446,0.00011776,2]
[403724351,1769509838345,-273.19907554,0.00011776,2]
[403724352,1769509838357,-156.32297798,0.00011776,2]
[403724353,1769509838374,-143.67702202,0.00011776,2]
[403724354,1769509838384,-300.0,0.00011776,2]
[403724355,1769509838395,-94.68497798,0.00011776,2]
[403724356,1769509838408,-205.31502202,0.00011776,2]
[403724357,1769509838419,-600.0,0.00012011,2]
[403724358,1769509838430,-384.29596013,0.00012188,2]
[403724359,1769509838442,-115.70403987,0.00012188,2]
[403724360,1769509838453,-445.12432844,0.00012188,2]
[403724361,1769509838464,-500.0,0.00012188,2]
[403724362,1769509838474,-251.53786924,0.00012188,2]
[403724363,1769509838487,-248.46213076,0.00012188,2]
[403724364,1769509838498,-214.31881728,0.00012188,2]
[403724365,1769509838510,-500.0,0.00012188,2]
[403724366,1769509838521,-500.0,0.00012188,2]
[403724367,1769509838532,-500.0,0.00012188,2]
[403724368,1769509838543,-391.7118477,0.00012188,2]
[403724369,1769509838553,-500.0,0.00012188,2]
[403724370,1769509838564,-500.0,0.00012188,2]
[403724371,1769509838575,-325.19222268,0.00012188,2]
[403724372,1769509838585,-500.0,0.00012188,2]
[403724373,1769509838595,-500.0,0.00012188,2]
[403724374,1769509838606,-500.0,0.00012188,2]
[403724375,1769509838617,-500.0,0.00012188,2]
[403724376,1769509838628,-500.0,0.00012188,2]
[403724377,1769509838639,-500.0,0.00012188,2]
[403724378,1769509838650,-500.0,0.00012188,2]
[403724379,1769509838661,-500.0,0.00012188,2]
[403724380,1769509838672,-500.0,0.00012188,2]
[403724381,1769509838683,-500.0,0.00012188,2]
[403724382,1769509838695,-500.0,0.00012188,2]
[403724383,1769509838706,-500.0,0.00012188,2]
[403724384,1769509838718,-500.0,0.00012188,2]
[403724385,1769509838729,-500.0,0.00012188,2]
[403724386,1769509838741,-500.0,0.00012188,2]
[403724387,1769509838753,-500.0,0.00012188,2]
[403724388,1769509838763,-500.0,0.00012188,2]
[403724389,1769509838775,-500.0,0.00012188,2]
[403724390,1769509838785,-500.0,0.00012188,2]
[403724391,1769509838796,-500.0,0.00012188,2]
[403724392,1769509838806,-500.0,0.00012188,2]
[403724393,1769509838816,-500.0,0.00012188,2]
[403724394,1769509838830,-500.0,0.00012188,2]
[403724395,1769509838841,-500.0,0.00012188,2]
[403724396,1769509838851,-500.0,0.00012188,2]
[403724397,1769509838862,-500.0,0.00012188,2]
[403724398,1769509838872,-500.0,0.00012188,2]
[403724399,1769509838882,-500.0,0.00012188,2]
[403724400,1769509838893,-650.0,0.00012188,2]
[403724401,1769509838903,-500.0,0.00012462,2]
[403724402,1769509838913,-517.0346955,0.000125,2]
[403724403,1769509838923,-151.0,0.00012558,2]
[403724404,1769509838934,-190.88320984,0.00012558,2]
[403724405,1769509838944,-3077.36663139,0.00012563,2]
[403724406,1769509838954,-327.17,0.00012563,2]
[403724407,1769509838964,-151.0,0.000126,2]
[403724408,1769509838974,-151.0,0.000126,2]
[403724409,1769509838985,-151.0,0.000126,2]
[403724410,1769509838995,-151.0,0.000126,2]
[403724411,1769509839007,-151.0,0.000126,2]
[403724412,1769509839018,-151.0,0.000126,2]
[403724413,1769509839029,-151.0,0.000126,2]
[403724414,1769509839040,-151.0,0.000126,2]
[403724415,1769509839051,-151.0,0.000126,2]
[403724416,1769509839063,-151.0,0.000126,2]
[403724417,1769509839074,-151.0,0.000126,2]
[403724418,1769509839085,-151.0,0.000126,2]
[403724419,1769509839102,-151.0,0.000126,2]
[403724420,1769509839115,-151.0,0.000126,2]
[403724421,1769509839127,-151.0,0.000126,2]
[403724422,1769509839138,-151.0,0.000126,2]
[403724423,1769509839149,-151.0,0.000126,2]
[403724424,1769509839159,-151.0,0.000126,2]
[403724425,1769509839173,-151.0,0.000126,2]
[403724426,1769509839184,-151.0,0.000126,2]
[403724427,1769509839197,-151.0,0.000126,2]
[403724428,1769509839208,-151.0,0.000126,2]
[403724429,1769509839219,-151.0,0.000126,2]
[403724430,1769509839231,-151.0,0.000126,2]
[403724431,1769509839242,-151.0,0.000126,2]
[403724432,1769509839253,-151.0,0.000126,2]
[403724433,1769509839264,-151.0,0.000126,2]
[403724434,1769509839276,-500.0,0.00012736,2]
[403724435,1769509839288,-313.0,0.00012807,2]
[403724436,1769509839298,-420.0,0.00012807,2]
[403724437,1769509839309,-1680.0,0.00012828,2]
[403724438,1769509839320,-500.0,0.0001301,2]
[403724439,1769509839330,-720.0,0.00013212,2]
[403724440,1769509839342,-264.83719499,0.00013273,2]
[403724441,1769509839354,-501.50463274,0.00013273,2]
[403724442,1769509839365,-176.32520513,0.00013273,2]
[403724443,1769509839377,-284.04326702,0.00013273,2]
[403724444,1769509839388,-500.0,0.00013273,2]
[403724445,1769509839402,-500.0,0.00013273,2]
[403724446,1769509839415,-500.0,0.00013273,2]
[403724447,1769509839428,-500.0,0.00013273,2]
[403724448,1769509839439,-500.0,0.00013273,2]
[403724449,1769509839450,-500.0,0.00013273,2]
[403724450,1769509839461,-500.0,0.00013273,2]
[403724451,1769509839472,-500.0,0.00013273,2]
[403724452,1769509839483,-500.0,0.00013273,2]
[403724453,1769509839494,-500.0,0.00013273,2]
[403724454,1769509839504,-500.0,0.00013273,2]
[403724455,1769509839514,-500.0,0.00013273,2]
[403724456,1769509839525,-337.47725408,0.00013273,2]
[403724457,1769509839536,-500.0,0.00013273,2]
[403724458,1769509839546,-500.0,0.00013273,2]
[403724459,1769509839557,-500.0,0.00013273,2]
[403724460,1769509839569,-500.0,0.00013273,2]
[403724461,1769509839581,-500.0,0.00013273,2]
[403724462,1769509839593,-500.0,0.00013273,2]
[403724463,1769509839603,-500.0,0.00013273,2]
[403724464,1769509839614,-500.0,0.00013273,2]
[403724465,1769509839625,-500.0,0.00013273,2]
[403724466,1769509839636,-500.0,0.00013273,2]
[403724467,1769509839646,-500.0,0.00013273,2]
[403724468,1769509839656,-500.0,0.00013273,2]
[403724469,1769509839666,-343.82289971,0.00013284,2]
[403724470,1769509839677,-416.32374927,0.00013604,2]
[403724471,1769509839687,-300.0,0.00013673,2]
[403724472,1769509839696,-500.0,0.00013698,2]
[403724473,1769509839706,-500.0,0.00013698,2]
[403724474,1769509839716,-500.0,0.00013698,2]
[403724475,1769509839727,-500.0,0.00013698,2]
[403724476,1769509839741,-500.0,0.00013698,2]
[403724477,1769509839751,-500.0,0.00013698,2]
[403724478,1769509839761,-500.0,0.00013698,2]
[403724479,1769509839771,-500.0,0.00013698,2]
[403724480,1769509839784,-500.0,0.00013698,2]
[403724481,1769509839795,-500.0,0.00013698,2]
[403724482,1769509839804,-500.0,0.00013698,2]
[403724483,1769509839815,-500.0,0.00013698,2]
[403724484,1769509839824,-500.0,0.00013698,2]
[403724485,1769509839834,-500.0,0.00013698,2]
[403724486,1769509839844,-500.0,0.00013698,2]
[403724487,1769509839855,-500.0,0.00013698,2]
[403724488,1769509839864,-500.0,0.00013698,2]
[403724489,1769509839874,-500.0,0.00013698,2]
[403724490,1769509839884,-500.0,0.00013698,2]
[403724491,1769509839894,-500.0,0.00013698,2]
[403724492,1769509839903,-500.0,0.00013698,2]
[403724493,1769509839913,-500.0,0.00013698,2]
[403724494,1769509839923,-625.53895827,0.00013698,2]
[403724495,1769509839932,-500.0,0.00013698,2]
[403724496,1769509839943,-500.0,0.00013698,2]
[403724497,1769509839957,-500.0,0.00013698,2]
[403724498,1769509839967,-500.0,0.00013698,2]
[403724499,1769509839976,-500.0,0.00013698,2]
[403724500,1769509839986,-500.0,0.00013698,2]
[403724501,1769509839995,-500.0,0.00013698,2]
[403724502,1769509840006,-648.81,0.00013698,2]
[403724503,1769509840017,-1000.0,0.00013698,2]
[403724504,1769509840027,-1000.0,0.00013698,2]
[403724505,1769509840042,-1000.0,0.00013698,2]
[403724506,1769509840053,-1000.0,0.00013698,2]
[403724507,1769509840063,-941.13251238,0.00013698,2]
[403724508,1769509840074,-500.0,0.00013698,2]
[403724509,1769509840086,-1000.0,0.00013698,2]
[403724510,1769509840097,-580.78992406,0.00013698,2]
[403724511,1769509840107,-500.0,0.00013698,2]
[403724512,1769509840117,-500.0,0.00013698,2]
[403724513,1769509840127,-500.0,0.00013698,2]
[403724514,1769509840138,-500.0,0.00013698,2]
[403724515,1769509840148,-500.0,0.00013698,2]
[403724517,1769509840158,-500.0,0.00013698,2]
[403724518,1769509840169,-500.0,0.00013698,2]
[403724519,1769509840179,-515.45788341,0.00013698,2]
[403724520,1769509840189,-1000.0,0.00013699,2]
[403724521,1769509840200,-500.0,0.00013699,2]
[403724522,1769509840210,-500.0,0.00013699,2]
[403724523,1769509840221,-610.42597811,0.00013699,2]
[403724524,1769509840230,-500.0,0.00013699,2]
[403724525,1769509840240,-348.473489,0.00013699,2]
[403724526,1769509840250,-500.0,0.00013699,2]
[403724527,1769509840260,-500.0,0.00013699,2]
[403724528,1769509840271,-502.14185001,0.00013699,2]
[403724529,1769509840282,-500.0,0.00013699,2]
[403724530,1769509840293,-500.2256561,0.00013699,2]
[403724531,1769509840302,-220.8942339,0.00013699,2]
[403724532,1769509840312,-500.6948387,0.00013699,2]
[403724533,1769509840323,-500.74038109,0.00013699,2]
[403724534,1769509840333,-507.15850376,0.00013699,2]
[403724535,1769509840343,-500.0,0.00013699,2]
[403724536,1769509840354,-500.0,0.00013699,2]
[403724537,1769509840365,-194.72932748,0.00013699,2]
[403724539,1769509840377,-500.0,0.00013699,2]
[403724541,1769509840389,-160.20285304,0.00013699,2]
[403724542,1769509840400,-500.0,0.00013699,2]
[403724543,1769509840411,-500.0,0.00013699,2]
[403724544,1769509840422,-500.0,0.00013699,2]
[403724546,1769509840432,-500.0,0.00013699,2]
[403724548,1769509840443,-500.74660917,0.00013699,2]
[403724550,1769509840453,-500.0,0.00013699,2]
[403724552,1769509840463,-603.02448987,0.00013699,2]
[403724554,1769509840474,-500.0,0.00013699,2]
[403724556,1769509840485,-500.0,0.00013699,2]
[403724558,1769509840495,-500.0,0.00013699,2]
[403724560,1769509840505,-500.0,0.00013699,2]
[403724562,1769509840515,-500.0,0.00013699,2]
[403724564,1769509840525,-500.0,0.00013699,2]
[403724566,1769509840535,-500.0,0.00013699,2]
[403724568,1769509840544,-500.0,0.00013699,2]
[403724570,1769509840554,-500.0,0.00013699,2]
[403724572,1769509840564,-500.0,0.00013699,2]
[403724574,1769509840573,-500.0,0.00013699,2]
[403724576,1769509840583,-500.0,0.00013699,2]
[403724578,1769509840592,-1000.0,0.00013821,2]
[403724580,1769509840602,-1000.0,0.00013821,2]
[403724582,1769509840612,-464.54701019,0.00013821,2]
[403724584,1769509840622,-502.68815338,0.00013821,2]
[403724586,1769509840632,-1000.0,0.00013821,2]
[403724588,1769509840643,-500.0,0.00013821,2]
[403724589,1769509840653,-501.88219133,0.00013821,2]
[403724591,1769509840663,-1000.0,0.00013821,2]
[403724593,1769509840674,-371.28937045,0.00013821,2]
[403724595,1769509840684,-1000.0,0.00013821,2]
[403724597,1769509840694,-1000.0,0.00013821,2]
[403724599,1769509840706,-1000.0,0.00013821,2]
[403724601,1769509840716,-1000.0,0.00013821,2]
[403724602,1769509840726,-1000.0,0.00013821,2]
[403724603,1769509840737,-1000.0,0.00013821,2]
[403724604,1769509840753,-1004.79261489,0.00013821,2]
[403724605,1769509840764,-1000.0,0.00013821,2]
[403724606,1769509840775,-1000.0,0.00013821,2]
[403724607,1769509840785,-1000.0,0.00013821,2]
[403724608,1769509840795,-587.0,0.00014064,2]
[403724609,1769509840805,-2351.0,0.00014111,2]
[403724610,1769509840815,-600.0,0.00014221,2]
[403724611,1769509840825,-344.14797869,0.00014247,2]
[403724612,1769509840835,-1000.0,0.00014247,2]
[403724613,1769509840846,-617.40899688,0.00014247,2]
[403724614,1769509840856,-1000.0,0.00014247,2]
[403724615,1769509840867,-1000.0,0.00014247,2]
[403724616,1769509840877,-1000.0,0.00014247,2]
[403724617,1769509840887,-976.55877196,0.00014247,2]
[403724618,1769509840900,-1000.0,0.00014247,2]
[403724619,1769509840910,-984.5242166,0.00014247,2]
[403724620,1769509840920,-500.0,0.00014247,2]
[403724621,1769509840929,-1000.0,0.00014247,2]
[403724622,1769509840940,-500.0,0.00014247,2]
[403724623,1769509840951,-1000.0,0.00014247,2]
[403724624,1769509840961,-158.68078088,0.00014247,2]
[403724625,1769509840971,-1000.0,0.00014247,2]
[403724626,1769509840982,-1000.0,0.00014247,2]
[403724627,1769509840992,-801.56130493,0.00014247,2]
[403724628,1769509841002,-1000.0,0.00014247,2]
[403724629,1769509841013,-1000.0,0.00014247,2]
[403724631,1769509841024,-1000.0,0.00014247,2]
[403724632,1769509841035,-1000.0,0.00014247,2]
[403724633,1769509841046,-1000.0,0.00014247,2]
[403724636,1769509841058,-498.54806363,0.00014247,2]
[403724638,1769509841068,-277.75900017,0.00014247,2]
[403724640,1769509841079,-3505.8113486,0.00014306,2]
[403724642,1769509841091,-1500.0,0.00014368,2]
[403724644,1769509841102,-1500.0,0.00014368,2]
[403724646,1769509841113,-1500.0,0.00014368,2]
[403724648,1769509841123,-1500.0,0.00014368,2]
[403724650,1769509841134,-1500.0,0.00014368,2]
[403724652,1769509841145,-1500.0,0.00014368,2]
[403724653,1769509841156,-1500.0,0.00014368,2]
[403724655,1769509841168,-1500.0,0.00014368,2]
[403724658,1769509841181,-1500.0,0.00014368,2]
[403724660,1769509841193,-1500.0,0.00014368,2]
[403724662,1769509841203,-1500.0,0.00014368,2]
[403724664,1769509841214,-833.60544809,0.00014368,2]
[403724682,1769509841224,-864.0,0.00014533,2]
[403724684,1769509841419,-900.0,0.00014768,2]
[403724686,1769509841429,-1500.0,0.00014795,2]
[403724689,1769509841440,-1500.0,0.00014795,2]
[403724691,1769509841451,-175.70742984,0.00014795,2]
[403724692,1769509841461,-433.66109963,0.00014795,2]
[403724694,1769509841471,-1500.0,0.00014795,2]
[403724696,1769509841481,-1500.0,0.00014795,2]
[403724698,1769509841491,-1032.3582484,0.00014795,2]
[403724700,1769509841502,-1500.0,0.00014795,2]
[403724702,1769509841512,-1500.0,0.00014795,2]
[403724705,1769509841523,-1500.0,0.00014795,2]
[403724707,1769509841534,-1008.31156326,0.00014795,2]
[403724709,1769509841550,-336.4468968,0.00014795,2]
[403724711,1769509841561,-1500.0,0.00014795,2]
[403724713,1769509841571,-944.83278886,0.00014795,2]
[403724715,1769509841582,-782.2522476,0.00014896,2]
[403724717,1769509841592,-2000.0,0.00014916,2]
[403724719,1769509841603,-2000.0,0.00014916,2]
[403724721,1769509841620,-2000.0,0.00014916,2]
[403724723,1769509841631,-2000.0,0.00014916,2]
[403724725,1769509841643,-2000.0,0.00014916,2]
[403724728,1769509841656,-2000.0,0.00014916,2]
[403724729,1769509841668,-2000.0,0.00014916,2]
[403724731,1769509841680,-2000.0,0.00014916,2]
[403724734,1769509841692,-2000.0,0.00014916,2]
[403724736,1769509841703,-2000.0,0.00014916,2]
[403724738,1769509841713,-2000.0,0.00014916,2]